fUST/lending_fUST_20260630
["ID","MTS","AMOUNT","RATE_DAILY","PERIOD"]
[426757837,1782783041000,-500.0,0.00029863,7]
[426757839,1782783041000,-500.0,0.00029863,7]
[426757853,1782783041000,-500.0,0.00029863,7]
[426757807,1782783041000,-500.0,0.00029863,7]
[426757847,1782783041000,-500.0,0.00029863,7]
[426757833,1782783041000,-500.0,0.00029863,7]
[426757803,1782783041000,-500.0,0.00029863,7]
[426757779,1782783041000,-500.0,0.00029863,7]
[426757793,1782783041000,-500.0,0.00029863,7]
[426757841,1782783041000,-645.85929236,0.00029863,7]
[426757756,1782783041000,-500.0,0.00029863,7]
[426757758,1782783041000,-500.0,0.00029863,7]
[426757755,1782783041000,-500.0,0.00029863,7]
[426757760,1782783041000,-500.0,0.00029863,7]
[426757765,1782783041000,-500.0,0.00029863,7]
[426757762,1782783041000,-500.0,0.00029863,7]
[426757763,1782783041000,-500.0,0.00029863,7]
[426757767,1782783041000,-647.81863674,0.00029863,7]
[426757769,1782783041000,-500.0,0.00029863,7]
[426757773,1782783041000,-500.0,0.00029863,7]
[426757805,1782783041000,-584.49180857,0.00029863,7]
[426757775,1782783041000,-326.61768192,0.00029863,7]
[426757777,1782783041000,-411.85307051,0.00029863,7]
[426757783,1782783041000,-500.0,0.00029863,7]
[426757795,1782783041000,-500.0,0.00029863,7]
[426757797,1782783041000,-500.0,0.00029863,7]
[426757784,1782783041000,-500.0,0.00029863,7]
[426757801,1782783041000,-500.0,0.00029863,7]
[426757799,1782783041000,-500.0,0.00029863,7]
[426757791,1782783041000,-500.0,0.00029863,7]
[426757786,1782783041000,-500.0,0.00029863,7]
[426757788,1782783041000,-500.0,0.00029863,7]
[426757790,1782783041000,-500.0,0.00029863,7]
[426757781,1782783041000,-500.0,0.00029863,7]
[426757856,1782783041000,-500.0,0.00029863,7]
[426757771,1782783041000,-500.0,0.00029863,7]
[426757862,1782783041000,-500.0,0.00029863,7]
[426757925,1782783041000,-555.55042811,0.00029863,7]
[426757929,1782783041000,-500.0,0.00029863,7]
[426757931,1782783041000,-500.0,0.00029863,7]
[426757939,1782783041000,-500.0,0.00029863,7]
[426757937,1782783041000,-500.0,0.00029863,7]
[426757933,1782783041000,-500.0,0.00029863,7]
[426757944,1782783041000,-458.93432529,0.00029863,7]
[426757942,1782783041000,-500.0,0.00029863,7]
[426757947,1782783041000,-500.0,0.00029863,7]
[426757954,1782783041000,-500.0,0.00029863,7]
[426757949,1782783041000,-500.0,0.00029863,7]
[426757923,1782783041000,-500.0,0.00029863,7]
[426757952,1782783041000,-500.0,0.00029863,7]
[426757962,1782783041000,-500.0,0.00029863,7]
[426757983,1782783041000,-500.0,0.00029863,7]
[426757964,1782783041000,-500.0,0.00029863,7]
[426757967,1782783041000,-500.0,0.00029863,7]
[426757979,1782783041000,-500.0,0.00029863,7]
[426757981,1782783041000,-500.0,0.00029863,7]
[426757970,1782783041000,-500.0,0.00029863,7]
[426757977,1782783041000,-500.0,0.00029863,7]
[426757973,1782783041000,-500.0,0.00029863,7]
[426757975,1782783041000,-500.0,0.00029863,7]
[426757855,1782783041000,-500.0,0.00029863,7]
[426757959,1782783041000,-500.0,0.00029863,7]
[426757927,1782783041000,-500.0,0.00029863,7]
[426757957,1782783041000,-492.79694311,0.00029863,7]
[426757918,1782783041000,-500.0,0.00029863,7]
[426757920,1782783041000,-500.0,0.00029863,7]
[426757860,1782783041000,-500.0,0.00029863,7]
[426757864,1782783041000,-500.0,0.00029863,7]
[426757868,1782783041000,-500.0,0.00029863,7]
[426757879,1782783041000,-500.0,0.00029863,7]
[426757866,1782783041000,-500.0,0.00029863,7]
[426757858,1782783041000,-500.0,0.00029863,7]
[426757872,1782783041000,-500.0,0.00029863,7]
[426757876,1782783041000,-953.13104547,0.00029863,2]
[426757881,1782783041000,-500.0,0.00029863,7]
[426757884,1782783041000,-500.0,0.00029863,7]
[426757886,1782783041000,-500.0,0.00029863,7]
[426757870,1782783041000,-500.0,0.00029863,7]
[426757899,1782783041000,-500.0,0.00029863,7]
[426757908,1782783041000,-500.0,0.00029863,7]
[426757915,1782783041000,-500.0,0.00029863,7]
[426757913,1782783041000,-500.0,0.00029863,7]
[426757903,1782783041000,-500.0,0.00029863,7]
[426757901,1782783041000,-500.0,0.00029863,7]
[426757911,1782783041000,-500.0,0.00029863,7]
[426757896,1782783041000,-500.0,0.00029863,7]
[426757889,1782783041000,-500.0,0.00029863,7]
[426757891,1782783041000,-500.0,0.00029863,7]
[426757894,1782783041000,-500.0,0.00029863,7]
[426757906,1782783041000,-500.0,0.00029863,7]
[426758078,1782783042000,-500.0,0.00029863,7]
[426758072,1782783042000,-500.0,0.00029863,7]
[426758063,1782783042000,-500.0,0.00029863,7]
[426758068,1782783042000,-500.0,0.00029863,7]
[426758076,1782783042000,-500.0,0.00029863,7]
[426758061,1782783042000,-500.0,0.00029863,7]
[426758050,1782783042000,-500.0,0.00029863,7]
[426758057,1782783042000,-500.0,0.00029863,7]
[426758055,1782783042000,-500.0,0.00029863,7]
[426758048,1782783042000,-500.0,0.00029863,7]
[426758046,1782783042000,-500.0,0.00029863,7]
[426758052,1782783042000,-500.0,0.00029863,7]
[426758059,1782783042000,-500.0,0.00029863,7]
[426758074,1782783042000,-500.0,0.00029863,7]
[426758104,1782783042000,-500.0,0.00029863,7]
[426758070,1782783042000,-500.0,0.00029863,7]
[426758067,1782783042000,-500.0,0.00029863,7]
[426758084,1782783042000,-500.0,0.00029863,7]
[426758080,1782783042000,-442.22752325,0.00029863,7]
[426758082,1782783042000,-3147.7205,0.00029863,7]
[426758100,1782783042000,-500.0,0.00029863,7]
[426758088,1782783042000,-500.0,0.00029863,7]
[426758090,1782783042000,-500.0,0.00029863,7]
[426758086,1782783042000,-500.0,0.00029863,7]
[426758092,1782783042000,-500.0,0.00029863,7]
[426758098,1782783042000,-500.0,0.00029863,7]
[426758094,1782783042000,-500.0,0.00029863,7]
[426758044,1782783042000,-500.0,0.00029863,7]
[426758065,1782783042000,-500.0,0.00029863,7]
[426758054,1782783042000,-500.0,0.00029863,7]
[426757996,1782783042000,-500.0,0.00029863,7]
[426758041,1782783042000,-500.0,0.00029863,7]
[426757987,1782783042000,-638.94288835,0.00029863,7]
[426757985,1782783042000,-500.0,0.00029863,7]
[426757988,1782783042000,-500.0,0.00029863,7]
[426757990,1782783042000,-500.0,0.00029863,7]
[426757994,1782783042000,-500.0,0.00029863,7]
[426758096,1782783042000,-500.0,0.00029863,7]
[426757992,1782783042000,-500.0,0.00029863,7]
[426757998,1782783042000,-500.0,0.00029863,7]
[426758000,1782783042000,-500.0,0.00029863,7]
[426758002,1782783042000,-500.0,0.00029863,7]
[426758001,1782783042000,-500.0,0.00029863,7]
[426758004,1782783042000,-500.0,0.00029863,7]
[426758011,1782783042000,-500.0,0.00029863,7]
[426758006,1782783042000,-500.0,0.00029863,7]
[426758009,1782783042000,-500.0,0.00029863,7]
[426758013,1782783042000,-500.0,0.00029863,7]
[426758015,1782783042000,-500.0,0.00029863,7]
[426758025,1782783042000,-500.0,0.00029863,7]
[426758017,1782783042000,-500.0,0.00029863,7]
[426758029,1782783042000,-500.0,0.00029863,7]
[426758027,1782783042000,-500.0,0.00029863,7]
[426758019,1782783042000,-645.75371082,0.00029863,7]
[426758023,1782783042000,-500.0,0.00029863,7]
[426758021,1782783042000,-500.0,0.00029863,7]
[426758037,1782783042000,-500.0,0.00029863,7]
[426758031,1782783042000,-500.0,0.00029863,7]
[426758033,1782783042000,-500.0,0.00029863,7]
[426758035,1782783042000,-500.0,0.00029863,7]
[426758039,1782783042000,-500.0,0.00029863,7]
[426758043,1782783042000,-500.0,0.00029863,7]
[426758102,1782783042000,-500.0,0.00029863,7]
[426758134,1782783042000,-500.0,0.00029863,7]
[426758106,1782783042000,-500.0,0.00029863,7]
[426758170,1782783042000,-500.0,0.00029863,7]
[426758174,1782783042000,-500.0,0.00029863,7]
[426758178,1782783042000,-500.0,0.00029863,7]
[426758181,1782783042000,-500.0,0.00029863,7]
[426758183,1782783042000,-500.0,0.00029863,7]
[426758185,1782783042000,-500.0,0.00029863,7]
[426758187,1782783042000,-500.0,0.00029863,7]
[426758191,1782783042000,-500.0,0.00029863,7]
[426758108,1782783042000,-500.0,0.00029863,7]
[426758193,1782783042000,-500.0,0.00029863,7]
[426758201,1782783042000,-343.88247245,0.00029863,7]
[426758203,1782783042000,-500.0,0.00029863,7]
[426758197,1782783042000,-500.0,0.00029863,7]
[426758167,1782783042000,-500.0,0.00029863,7]
[426758205,1782783042000,-500.0,0.00029863,7]
[426758199,1782783042000,-500.0,0.00029863,7]
[426758207,1782783042000,-500.0,0.00029863,7]
[426758209,1782783042000,-500.0,0.00029863,7]
[426758211,1782783042000,-500.0,0.00029863,7]
[426758213,1782783042000,-500.0,0.00029863,7]
[426758218,1782783042000,-500.0,0.00029863,7]
[426758225,1782783042000,-500.0,0.00029863,7]
[426758215,1782783042000,-500.0,0.00029863,7]
[426758216,1782783042000,-541.84,0.00029863,7]
[426758222,1782783042000,-500.0,0.00029863,7]
[426758223,1782783042000,-500.0,0.00029863,7]
[426758221,1782783042000,-500.0,0.00029863,7]
[426758224,1782783042000,-500.0,0.00029863,7]
[426758195,1782783042000,-500.0,0.00029863,7]
[426758179,1782783042000,-500.0,0.00029863,7]
[426758189,1782783042000,-500.0,0.00029863,7]
[426758172,1782783042000,-500.0,0.00029863,7]
[426758110,1782783042000,-500.0,0.00029863,7]
[426758112,1782783042000,-500.0,0.00029863,7]
[426758126,1782783042000,-500.0,0.00029863,7]
[426758169,1782783042000,-500.0,0.00029863,7]
[426758124,1782783042000,-500.0,0.00029863,7]
[426758117,1782783042000,-508.32035351,0.00029863,7]
[426758128,1782783042000,-500.0,0.00029863,7]
[426758120,1782783042000,-500.0,0.00029863,7]
[426758113,1782783042000,-500.0,0.00029863,7]
[426758122,1782783042000,-500.0,0.00029863,7]
[426758132,1782783042000,-500.0,0.00029863,7]
[426758136,1782783042000,-500.0,0.00029863,7]
[426758130,1782783042000,-500.0,0.00029863,7]
[426758153,1782783042000,-500.0,0.00029863,7]
[426758115,1782783042000,-500.0,0.00029863,7]
[426758151,1782783042000,-540.69340715,0.00029863,7]
[426758149,1782783042000,-500.0,0.00029863,7]
[426758176,1782783042000,-500.0,0.00029863,7]
[426758163,1782783042000,-371.55053622,0.00029863,7]
[426758157,1782783042000,-500.0,0.00029863,7]
[426758155,1782783042000,-544.77822561,0.00029863,7]
[426758161,1782783042000,-500.0,0.00029863,7]
[426758165,1782783042000,-500.0,0.00029863,7]
[426758143,1782783042000,-500.0,0.00029863,7]
[426758141,1782783042000,-500.0,0.00029863,7]
[426758138,1782783042000,-500.0,0.00029863,7]
[426758140,1782783042000,-541.46,0.00029863,7]
[426758147,1782783042000,-500.0,0.00029863,7]
[426758159,1782783042000,-293.27681395,0.00029863,7]
[426758145,1782783042000,-500.0,0.00029863,7]
[426758239,1782783043000,-500.0,0.00029863,7]
[426758250,1782783043000,-500.0,0.00029863,7]
[426758254,1782783043000,-500.0,0.00029863,7]
[426758252,1782783043000,-500.0,0.00029863,7]
[426758263,1782783043000,-508.69345333,0.00029863,7]
[426758272,1782783043000,-500.0,0.00029863,7]
[426758268,1782783043000,-500.0,0.00029863,7]
[426758243,1782783043000,-500.0,0.00029863,7]
[426758261,1782783043000,-500.0,0.00029863,7]
[426758241,1782783043000,-500.0,0.00029863,7]
[426758227,1782783043000,-500.0,0.00029863,7]
[426758235,1782783043000,-500.0,0.00029863,7]
[426758246,1782783043000,-500.0,0.00029863,7]
[426758233,1782783043000,-500.0,0.00029863,7]
[426758248,1782783043000,-500.0,0.00029863,7]
[426758245,1782783043000,-500.0,0.00029863,7]
[426758232,1782783043000,-500.0,0.00029863,7]
[426758230,1782783043000,-500.0,0.00029863,7]
[426758228,1782783043000,-500.0,0.00029863,7]
[426758226,1782783043000,-500.0,0.00029863,7]
[426758265,1782783043000,-500.0,0.00029863,7]
[426758237,1782783043000,-500.0,0.00029863,7]
[426758258,1782783043000,-500.0,0.00029863,7]
[426758256,1782783043000,-500.0,0.00029863,7]
[426758274,1782783043000,-500.0,0.00029863,7]
[426758333,1782783043000,-303.25740844,0.00029863,7]
[426758309,1782783043000,-196.74259156,0.00029863,7]
[426758307,1782783043000,-500.0,0.00029863,7]
[426758305,1782783043000,-500.0,0.00029863,7]
[426758303,1782783043000,-409.6554965,0.00029863,7]
[426758298,1782783043000,-184.53395573,0.00029863,7]
[426758300,1782783043000,-500.0,0.00029863,7]
[426758302,1782783043000,-500.0,0.00029863,7]
[426758297,1782783043000,-500.0,0.00029863,7]
[426758286,1782783043000,-500.0,0.00029863,7]
[426758284,1782783043000,-500.0,0.00029863,7]
[426758267,1782783043000,-500.0,0.00029863,7]
[426758281,1782783043000,-500.0,0.00029863,7]
[426758295,1782783043000,-500.0,0.00029863,7]
[426758291,1782783043000,-500.0,0.00029863,7]
[426758293,1782783043000,-500.0,0.00029863,7]
[426758290,1782783043000,-500.0,0.00029863,7]
[426758335,1782783043000,-410.81184205,0.00029863,7]
[426758279,1782783043000,-500.0,0.00029863,7]
[426758277,1782783043000,-328.74,0.00029863,7]
[426758259,1782783043000,-500.0,0.00029863,7]
[426758270,1782783043000,-500.0,0.00029863,7]
[426758276,1782783043000,-500.0,0.00029863,7]
[426758288,1782783043000,-500.0,0.00029863,7]
[426758414,1782783044000,-89.18815795,0.00029863,7]
[426758419,1782783044000,-410.82893429,0.00029863,7]
[426758417,1782783044000,-17.85680181,0.00029863,7]
[426758602,1782783047000,-1.88881609,0.00029863,7]
[426758593,1782783047000,-384.6857361,0.00029863,7]
[426758600,1782783047000,-500.0,0.00029863,7]
[426758595,1782783047000,-324.20412064,0.00029863,7]
[426758601,1782783047000,-500.0,0.00029863,7]
[426758592,1782783047000,-71.3142639,0.00029863,7]
[426758597,1782783047000,-500.0,0.00029863,7]
[426758594,1782783047000,-115.3142639,0.00029863,7]
[426758598,1782783047000,-500.0,0.00029863,7]
[426758596,1782783047000,-500.0,0.00029863,7]
[426758599,1782783047000,-500.0,0.00029863,7]
[426758604,1782783142000,4725.02002322,0.0002455,120]
[426758605,1782783158000,-346.40882855,0.00017932,7]
[426758607,1782783210000,200.0,0.00029466,120]
[426758608,1782783219000,7739.04476797,0.000104,2]
[426758610,1782783270000,200.0,0.00028267,120]
[426758611,1782783291000,218.4095043,0.0002,120]
[426758612,1782783294000,1009.6350034,0.00029275,120]
[426758614,1782783330000,4082.70331084,0.00029763,120]
[426758629,1782783802000,409.50049084,0.0003,120]
[426758630,1782783856000,160.0,0.00029275,30]
[426758641,1782784017000,-250.14976654,0.000135,2]
[426758640,1782784017000,-193.25520877,0.00013365,2]
[426758680,1782784105000,1547.29,0.0003013,30]
[426758889,1782784238000,-500.0,0.00026413,2]
[426758895,1782784238000,-380.0,0.0002663,2]
[426758893,1782784238000,-10000.0,0.00026414,2]
[426758892,1782784238000,-500.0,0.00026413,2]
[426758899,1782784238000,-150.26,0.00026907,2]
[426758896,1782784238000,-1481.411,0.00026907,2]
[426758908,1782784238000,-320.24032205,0.0002817,2]
[426758907,1782784238000,-178.124,0.0002817,18]
[426758905,1782784238000,-167.10800982,0.00028154,2]
[426758904,1782784238000,-1247.22105198,0.0002807,2]
[426758898,1782784238000,-200.576,0.00026907,2]
[426758901,1782784238000,-281.025933,0.00027126,2]
[426758897,1782784238000,-746.0,0.00026907,2]
[426758900,1782784238000,-152.853,0.00026907,2]
[426758903,1782784238000,-600.0,0.00027949,2]
[426758902,1782784238000,-216.01268565,0.000279,2]
[426758906,1782784238000,-220.0,0.0002817,2]
[426758920,1782784238000,-500.0,0.0002817,2]
[426758909,1782784238000,-500.0,0.0002817,2]
[426758918,1782784238000,-500.0,0.0002817,2]
[426758885,1782784238000,-500.0,0.00026413,2]
[426758887,1782784238000,-500.0,0.00026413,2]
[426758894,1782784238000,-487.4166451,0.00026539,2]
[426758886,1782784238000,-500.0,0.00026413,2]
[426758867,1782784238000,-9821.04774135,0.0002,2]
[426758868,1782784238000,-150.70334193,0.0002,2]
[426758869,1782784238000,-241.57755293,0.00022167,7]
[426758871,1782784238000,-362.36632939,0.0002394,7]
[426758870,1782784238000,-167.14051929,0.00022944,5]
[426758875,1782784238000,-550.0,0.00025732,2]
[426758878,1782784238000,-213.25,0.00026404,2]
[426758882,1782784238000,-215.47104436,0.00026413,2]
[426758872,1782784238000,-160.0,0.00024643,2]
[426758876,1782784238000,-160.75,0.00026347,2]
[426758877,1782784238000,-160.75,0.00026349,2]
[426758879,1782784238000,-428.96460061,0.00026413,2]
[426758880,1782784238000,-500.0,0.00026413,2]
[426758874,1782784238000,-3080.8973216,0.00025671,2]
[426758881,1782784238000,-500.0,0.00026413,2]
[426758873,1782784238000,-507.0070476,0.00024649,2]
[426758884,1782784238000,-500.0,0.00026413,2]
[426758883,1782784238000,-500.0,0.00026413,2]
[426758888,1782784238000,-500.0,0.00026413,2]
[426758891,1782784238000,-420.42435032,0.00026413,2]
[426758890,1782784238000,-500.0,0.00026413,2]
[426758915,1782784238000,-500.0,0.0002817,2]
[426758910,1782784238000,-500.0,0.0002817,2]
[426758919,1782784238000,-500.0,0.0002817,2]
[426758921,1782784238000,-500.0,0.0002817,2]
[426758948,1782784238000,-500.0,0.00028993,2]
[426758943,1782784238000,-2283.06213806,0.00028552,2]
[426758938,1782784238000,-821.9023697,0.00028172,2]
[426758947,1782784238000,-1247.22105197,0.00028917,2]
[426758949,1782784238000,-1007.341585,0.000291,2]
[426758941,1782784238000,-500.0,0.00028445,2]
[426758945,1782784238000,-160.0,0.00028614,2]
[426758946,1782784238000,-500.0,0.00028719,2]
[426758951,1782784238000,-151.0,0.00029275,7]
[426758950,1782784238000,-516.57098727,0.00029267,2]
[426758961,1782784238000,-179.53,0.00029419,2]
[426758955,1782784238000,-151.0,0.00029275,7]
[426758960,1782784238000,-179.52,0.00029419,2]
[426758952,1782784238000,-151.0,0.00029275,7]
[426758956,1782784238000,-239.749063,0.00029275,7]
[426758958,1782784238000,-1326.1184929,0.00029333,2]
[426758954,1782784238000,-151.0,0.00029275,7]
[426758959,1782784238000,-1247.22105197,0.0002934,2]
[426758957,1782784238000,-1738.85,0.00029275,7]
[426758913,1782784238000,-500.0,0.0002817,2]
[426758962,1782784238000,-238.26436589,0.00029428,2]
[426758940,1782784238000,-885.64352073,0.00028172,2]
[426758944,1782784238000,-353.200114,0.0002857,2]
[426758953,1782784238000,-151.0,0.00029275,7]
[426758939,1782784238000,-1461.15976836,0.00028172,2]
[426758911,1782784238000,-500.0,0.0002817,2]
[426758914,1782784238000,-500.0,0.0002817,2]
[426758942,1782784238000,-1247.22105197,0.00028493,2]
[426758912,1782784238000,-500.0,0.0002817,2]
[426758916,1782784238000,-500.0,0.0002817,2]
[426758917,1782784238000,-500.0,0.0002817,2]
[426758934,1782784238000,-515.50686903,0.00028171,7]
[426758935,1782784238000,-276.76360023,0.00028172,2]
[426758933,1782784238000,-500.0,0.00028171,2]
[426758922,1782784238000,-500.0,0.0002817,2]
[426758923,1782784238000,-500.0,0.0002817,2]
[426758929,1782784238000,-500.0,0.0002817,2]
[426758927,1782784238000,-500.0,0.0002817,2]
[426758926,1782784238000,-500.0,0.0002817,2]
[426758925,1782784238000,-500.0,0.0002817,2]
[426758930,1782784238000,-464.51973915,0.0002817,2]
[426758928,1782784238000,-500.0,0.0002817,2]
[426758931,1782784238000,-288.91435253,0.0002817,2]
[426758937,1782784238000,-456.61242761,0.00028172,2]
[426758924,1782784238000,-500.0,0.0002817,2]
[426758932,1782784238000,-150.76809217,0.0002817,2]
[426758936,1782784238000,-498.17448041,0.00028172,2]
[426759003,1782784239000,-500.0,0.00029863,7]
[426758998,1782784239000,-500.0,0.00029863,7]
[426758996,1782784239000,-500.0,0.00029863,7]
[426759007,1782784239000,-500.0,0.00029863,7]
[426759004,1782784239000,-500.0,0.00029863,7]
[426759006,1782784239000,-500.0,0.00029863,7]
[426759002,1782784239000,-500.0,0.00029863,7]
[426759001,1782784239000,-500.0,0.00029863,7]
[426758991,1782784239000,-500.0,0.00029863,7]
[426759000,1782784239000,-505.6734952,0.00029863,7]
[426758995,1782784239000,-500.0,0.00029863,7]
[426758999,1782784239000,-500.0,0.00029863,7]
[426758997,1782784239000,-503.97401486,0.00029863,7]
[426759013,1782784239000,-500.0,0.00029863,7]
[426759014,1782784239000,-349.28349729,0.00029863,7]
[426759008,1782784239000,-513.22931886,0.00029863,7]
[426759012,1782784239000,-500.0,0.00029863,7]
[426759018,1782784239000,-500.0,0.00029863,7]
[426759019,1782784239000,-505.08623606,0.00029863,7]
[426759015,1782784239000,-500.0,0.00029863,7]
[426759016,1782784239000,-500.0,0.00029863,7]
[426759010,1782784239000,-500.0,0.00029863,7]
[426759011,1782784239000,-291.69396216,0.00029863,7]
[426759017,1782784239000,-500.0,0.00029863,7]
[426759009,1782784239000,-500.0,0.00029863,7]
[426759020,1782784239000,-500.0,0.00029863,7]
[426758989,1782784239000,-505.63637085,0.00029863,7]
[426759005,1782784239000,-500.0,0.00029863,7]
[426758985,1782784239000,-500.0,0.00029863,7]
[426758970,1782784239000,-353.200114,0.00029772,2]
[426758994,1782784239000,-500.0,0.00029863,7]
[426759024,1782784239000,-500.0,0.00029863,7]
[426758973,1782784239000,-213.25,0.00029853,2]
[426758974,1782784239000,-1573.8603,0.00029863,7]
[426758965,1782784239000,-180.6645,0.00029706,2]
[426758963,1782784239000,-6777.318204,0.00029534,2]
[426758964,1782784239000,-154.74226996,0.00029579,2]
[426758968,1782784239000,-211.39656064,0.00029763,2]
[426758966,1782784239000,-213.25,0.00029753,2]
[426758972,1782784239000,-1428.23120878,0.00029802,2]
[426758967,1782784239000,-238.9452126,0.00029763,2]
[426758971,1782784239000,-151.0,0.000298,2]
[426758969,1782784239000,-3100.095809,0.00029772,2]
[426758975,1782784239000,-194.395,0.00029863,7]
[426758980,1782784239000,-502.81275986,0.00029863,7]
[426758977,1782784239000,-502.60712718,0.00029863,7]
[426758983,1782784239000,-500.0,0.00029863,7]
[426758978,1782784239000,-502.67506426,0.00029863,7]
[426758976,1782784239000,-179.06354543,0.00029863,2]
[426758979,1782784239000,-502.80413378,0.00029863,7]
[426758981,1782784239000,-1124.1573,0.00029863,7]
[426758982,1782784239000,-500.0,0.00029863,7]
[426758992,1782784239000,-500.0,0.00029863,7]
[426758993,1782784239000,-500.0,0.00029863,7]
[426758986,1782784239000,-500.0,0.00029863,7]
[426758988,1782784239000,-500.0,0.00029863,7]
[426758987,1782784239000,-500.0,0.00029863,7]
[426758990,1782784239000,-500.0,0.00029863,7]
[426758984,1782784239000,-583.19196354,0.00029863,7]
[426759026,1782784239000,-500.0,0.00029863,7]
[426759072,1782784239000,-181.89595386,0.00029863,7]
[426759027,1782784239000,-516.89827808,0.00029863,7]
[426759053,1782784239000,-500.0,0.00029863,7]
[426759055,1782784239000,-500.0,0.00029863,7]
[426759054,1782784239000,-500.0,0.00029863,7]
[426759074,1782784239000,-500.0,0.00029863,7]
[426759062,1782784239000,-500.0,0.00029863,7]
[426759073,1782784239000,-500.0,0.00029863,7]
[426759061,1782784239000,-500.0,0.00029863,7]
[426759065,1782784239000,-500.0,0.00029863,7]
[426759064,1782784239000,-500.0,0.00029863,7]
[426759063,1782784239000,-505.04392004,0.00029863,7]
[426759075,1782784239000,-500.0,0.00029863,7]
[426759066,1782784239000,-500.0,0.00029863,7]
[426759068,1782784239000,-500.0,0.00029863,7]
[426759070,1782784239000,-500.0,0.00029863,7]
[426759076,1782784239000,-500.0,0.00029863,7]
[426759078,1782784239000,-500.0,0.00029863,7]
[426759077,1782784239000,-500.0,0.00029863,7]
[426759083,1782784239000,-500.0,0.00029863,7]
[426759087,1782784239000,-500.0,0.00029863,7]
[426759082,1782784239000,-500.0,0.00029863,7]
[426759080,1782784239000,-500.0,0.00029863,7]
[426759081,1782784239000,-500.0,0.00029863,7]
[426759085,1782784239000,-428.75983727,0.00029863,7]
[426759086,1782784239000,-500.0,0.00029863,7]
[426759079,1782784239000,-516.24672201,0.00029863,7]
[426759084,1782784239000,-504.49914759,0.00029863,7]
[426759023,1782784239000,-500.0,0.00029863,7]
[426759057,1782784239000,-204.56741268,0.00029863,7]
[426759048,1782784239000,-500.0,0.00029863,7]
[426759071,1782784239000,-500.0,0.00029863,7]
[426759059,1782784239000,-500.0,0.00029863,7]
[426759025,1782784239000,-500.0,0.00029863,7]
[426759056,1782784239000,-500.0,0.00029863,7]
[426759021,1782784239000,-500.0,0.00029863,7]
[426759022,1782784239000,-500.0,0.00029863,7]
[426759033,1782784239000,-500.0,0.00029863,7]
[426759031,1782784239000,-500.0,0.00029863,7]
[426759029,1782784239000,-500.0,0.00029863,7]
[426759030,1782784239000,-500.0,0.00029863,7]
[426759028,1782784239000,-500.0,0.00029863,7]
[426759038,1782784239000,-501.64410308,0.00029863,7]
[426759034,1782784239000,-500.0,0.00029863,7]
[426759046,1782784239000,-231.82567129,0.00029863,7]
[426759045,1782784239000,-500.0,0.00029863,7]
[426759035,1782784239000,-500.0,0.00029863,7]
[426759032,1782784239000,-504.00657972,0.00029863,7]
[426759052,1782784239000,-500.0,0.00029863,7]
[426759060,1782784239000,-500.0,0.00029863,7]
[426759039,1782784239000,-501.06734251,0.00029863,7]